{"text_format":"1","workbook":"xlsx","n_sheets":2,"sheets":["OBJETIVOS","Cálculos de gráfico"],"not_rendered":{"charts":1,"images":0,"macros":0,"external_links":0,"defined_names":17,"comments":0,"pivot_tables":0},"unopened":[],"bounds":{"document_bytes":16777216,"sheet_cells":100000,"rows_first":2000,"rows_last":500,"rows_between":2000,"halvings":0,"cell_chars":16384,"cell_head_chars":4096},"cells_cut":0,"cells_raw":0,"read":"whole","date_system":"1900"}

{"sheet":"OBJETIVOS","index":0,"n_rows":28,"n_cols":11,"rows_kept":28,"cut":false,"hidden":false,"merged":[[5,1,6,1],[10,1,11,1],[1,1,1,10],[5,2,5,10],[10,2,10,10]]}
[]
[null,"PLANIFICADOR DE DIETAS"]
[]
[null,{"$f":"TODAY()","v":"2022-04-26"},"OBJETIVOS",null,null,null,null,null,null,"Ejercicio","Dieta"]
[null,"FECHA DE INICIO","DIARIO DE DIETA"]
[null,{"$f":"StartDate+121","v":"2022-08-25"},"ANÁLISIS DIETÉTICO"]
[]
[null,"FECHA DE FINALIZACIÓN"]
[null,100]
[null,"PESO INICIAL"]
[null,80]
[null,null,"FECHA","HORA","DESCRIPCIÓN","CALORÍAS","CARBOHIDRATOS","PROTEÍNAS","GRASAS","NOTAS"]
[null,"PESO FINAL",{"$f":"StartDate","v":"2022-04-26"},"07:00:00","Café",1,0,0,0,"Café matutino"]
[null,{"$f":"StartWeight-EndWeight","v":20},{"$f":"StartDate","v":"2022-04-26"},"08:00:00","Bagel",10,10,2,10,"Desayuno ligero"]
[null,"PÉRDIDA OBJETIVO",{"$f":"StartDate","v":"2022-04-26"},"12:00:00","Comida",283,46,18,3.5,"Sándwich de pavo"]
[null,{"$f":"EndDate-StartDate","v":121},{"$f":"StartDate","v":"2022-04-26"},"19:00:00","Cena",500,42,35,25,"Croquetas de patata gratinadas"]
[null,"DÍAS PARA PERDER PESO",{"$f":"StartDate+1","v":"2022-04-27"},"07:00:00","Café",1,0,0,0,"Café matutino"]
[null,{"$f":"WeightGoal/B16","v":0.16528925619834711},{"$f":"StartDate+1","v":"2022-04-27"},"08:00:00","Tostada",10,10,2,10,"Desayuno ligero"]
[null,"PÉRDIDA DIARIA",{"$f":"StartDate+1","v":"2022-04-27"},"12:00:00","Comida",189,26,3,8,"Sándwich"]
[null,null,{"$f":"StartDate+1","v":"2022-04-27"},"19:00:00","Cena",477,62,13.5,21,"Cena"]
[null,null,{"$f":"StartDate+2","v":"2022-04-28"},"07:00:00","Café",1,0,0,0,"Café matutino"]
[null,null,{"$f":"StartDate+2","v":"2022-04-28"},"08:00:00","Bagel",245,48,10,1.5,"Desayuno ligero"]
[null,null,{"$f":"StartDate+2","v":"2022-04-28"},"12:00:00","Comida",247,11,43,5,"Ensalada"]
[null,null,{"$f":"StartDate+2","v":"2022-04-28"},"19:00:00","Cena",456,64,32,22,"Cena"]
[null,null,{"$f":"StartDate+3","v":"2022-04-29"},"07:00:00","Tostada",10,10,2,10,"Desayuno ligero"]
[null,null,{"$f":"StartDate+3","v":"2022-04-29"},"10:00:00","Café",135,12.36,8.81,5.51,"Café con leche"]
[null,null,{"$f":"StartDate+3","v":"2022-04-29"},"12:15:00","Comida",184,7,5.43,15,"Ensalada"]
[null,null,{"$f":"StartDate+5","v":"2022-05-01"},"19:00:00","Cena",477,62,13.5,21,"Cena"]

{"sheet":"Cálculos de gráfico","index":1,"n_rows":36,"n_cols":10,"rows_kept":36,"cut":false,"hidden":true,"merged":[[1,1,1,9],[19,1,19,9]]}
[]
[null,"DATOS DEL GRÁFICO ANÁLISIS DE DIETA"]
[]
[null,"Fila inicial",{"$f":"ROW(#REF!)+1","v":{"$error":"#REF!"}},"FECHA","DÍA","GRASAS","PROTEÍNAS","CARBOHIDRATOS","CALORÍAS","Núm."]
[null,"Última entrada de la dieta",{"$f":"MATCH(9.99E+307,#REF!)+DietRowStart-1","v":{"$error":"#REF!"}},{"$f":"IFERROR(IF(INDEX(#REF!,DietLastEnd-DietRowStart-J5,1)<>\"\",INDEX(#REF!,DietLastEnd-DietRowStart-J5,1),\"\"),\"\")","v":""},{"$f":"UPPER(TEXT(D5,\"DDD\"))","v":""},{"$f":"IFERROR((IF(INDEX(#REF!,DietLastEnd-DietRowStart-J5,1)<>\"\",INDEX(#REF!,DietLastEnd-DietRowStart-J5,7),NA())),NA())","v":{"$error":"#N/A"}},{"$f":"IFERROR((IF(INDEX(#REF!,DietLastEnd-DietRowStart-J5,1)<>\"\",INDEX(#REF!,DietLastEnd-DietRowStart-J5,6),NA())),NA())","v":{"$error":"#N/A"}},{"$f":"IFERROR((IF(INDEX(#REF!,DietLastEnd-DietRowStart-J5,1)<>\"\",INDEX(#REF!,DietLastEnd-DietRowStart-J5,5),NA())),NA())","v":{"$error":"#N/A"}},{"$f":"IFERROR((IF(INDEX(#REF!,DietLastEnd-DietRowStart-J5,1)<>\"\",INDEX(#REF!,DietLastEnd-DietRowStart-J5,4),NA())),NA())","v":{"$error":"#N/A"}},12]
[null,null,null,{"$f":"IFERROR(IF(INDEX(#REF!,DietLastEnd-DietRowStart-J6,1)<>\"\",INDEX(#REF!,DietLastEnd-DietRowStart-J6,1),\"\"),\"\")","v":""},"",{"$f":"IFERROR((IF(INDEX(#REF!,DietLastEnd-DietRowStart-J6,1)<>\"\",INDEX(#REF!,DietLastEnd-DietRowStart-J6,7),NA())),NA())","v":{"$error":"#N/A"}},{"$f":"IFERROR((IF(INDEX(#REF!,DietLastEnd-DietRowStart-J6,1)<>\"\",INDEX(#REF!,DietLastEnd-DietRowStart-J6,6),NA())),NA())","v":{"$error":"#N/A"}},{"$f":"IFERROR((IF(INDEX(#REF!,DietLastEnd-DietRowStart-J6,1)<>\"\",INDEX(#REF!,DietLastEnd-DietRowStart-J6,5),NA())),NA())","v":{"$error":"#N/A"}},{"$f":"IFERROR((IF(INDEX(#REF!,DietLastEnd-DietRowStart-J6,1)<>\"\",INDEX(#REF!,DietLastEnd-DietRowStart-J6,4),NA())),NA())","v":{"$error":"#N/A"}},11]
[null,null,null,{"$f":"IFERROR(IF(INDEX(#REF!,DietLastEnd-DietRowStart-J7,1)<>\"\",INDEX(#REF!,DietLastEnd-DietRowStart-J7,1),\"\"),\"\")","v":""},"",{"$f":"IFERROR((IF(INDEX(#REF!,DietLastEnd-DietRowStart-J7,1)<>\"\",INDEX(#REF!,DietLastEnd-DietRowStart-J7,7),NA())),NA())","v":{"$error":"#N/A"}},{"$f":"IFERROR((IF(INDEX(#REF!,DietLastEnd-DietRowStart-J7,1)<>\"\",INDEX(#REF!,DietLastEnd-DietRowStart-J7,6),NA())),NA())","v":{"$error":"#N/A"}},{"$f":"IFERROR((IF(INDEX(#REF!,DietLastEnd-DietRowStart-J7,1)<>\"\",INDEX(#REF!,DietLastEnd-DietRowStart-J7,5),NA())),NA())","v":{"$error":"#N/A"}},{"$f":"IFERROR((IF(INDEX(#REF!,DietLastEnd-DietRowStart-J7,1)<>\"\",INDEX(#REF!,DietLastEnd-DietRowStart-J7,4),NA())),NA())","v":{"$error":"#N/A"}},10]
[null,null,null,{"$f":"IFERROR(IF(INDEX(#REF!,DietLastEnd-DietRowStart-J8,1)<>\"\",INDEX(#REF!,DietLastEnd-DietRowStart-J8,1),\"\"),\"\")","v":""},"",{"$f":"IFERROR((IF(INDEX(#REF!,DietLastEnd-DietRowStart-J8,1)<>\"\",INDEX(#REF!,DietLastEnd-DietRowStart-J8,7),NA())),NA())","v":{"$error":"#N/A"}},{"$f":"IFERROR((IF(INDEX(#REF!,DietLastEnd-DietRowStart-J8,1)<>\"\",INDEX(#REF!,DietLastEnd-DietRowStart-J8,6),NA())),NA())","v":{"$error":"#N/A"}},{"$f":"IFERROR((IF(INDEX(#REF!,DietLastEnd-DietRowStart-J8,1)<>\"\",INDEX(#REF!,DietLastEnd-DietRowStart-J8,5),NA())),NA())","v":{"$error":"#N/A"}},{"$f":"IFERROR((IF(INDEX(#REF!,DietLastEnd-DietRowStart-J8,1)<>\"\",INDEX(#REF!,DietLastEnd-DietRowStart-J8,4),NA())),NA())","v":{"$error":"#N/A"}},9]
[null,null,null,{"$f":"IFERROR(IF(INDEX(#REF!,DietLastEnd-DietRowStart-J9,1)<>\"\",INDEX(#REF!,DietLastEnd-DietRowStart-J9,1),\"\"),\"\")","v":""},"",{"$f":"IFERROR((IF(INDEX(#REF!,DietLastEnd-DietRowStart-J9,1)<>\"\",INDEX(#REF!,DietLastEnd-DietRowStart-J9,7),NA())),NA())","v":{"$error":"#N/A"}},{"$f":"IFERROR((IF(INDEX(#REF!,DietLastEnd-DietRowStart-J9,1)<>\"\",INDEX(#REF!,DietLastEnd-DietRowStart-J9,6),NA())),NA())","v":{"$error":"#N/A"}},{"$f":"IFERROR((IF(INDEX(#REF!,DietLastEnd-DietRowStart-J9,1)<>\"\",INDEX(#REF!,DietLastEnd-DietRowStart-J9,5),NA())),NA())","v":{"$error":"#N/A"}},{"$f":"IFERROR((IF(INDEX(#REF!,DietLastEnd-DietRowStart-J9,1)<>\"\",INDEX(#REF!,DietLastEnd-DietRowStart-J9,4),NA())),NA())","v":{"$error":"#N/A"}},8]
[null,null,null,{"$f":"IFERROR(IF(INDEX(#REF!,DietLastEnd-DietRowStart-J10,1)<>\"\",INDEX(#REF!,DietLastEnd-DietRowStart-J10,1),\"\"),\"\")","v":""},"",{"$f":"IFERROR((IF(INDEX(#REF!,DietLastEnd-DietRowStart-J10,1)<>\"\",INDEX(#REF!,DietLastEnd-DietRowStart-J10,7),NA())),NA())","v":{"$error":"#N/A"}},{"$f":"IFERROR((IF(INDEX(#REF!,DietLastEnd-DietRowStart-J10,1)<>\"\",INDEX(#REF!,DietLastEnd-DietRowStart-J10,6),NA())),NA())","v":{"$error":"#N/A"}},{"$f":"IFERROR((IF(INDEX(#REF!,DietLastEnd-DietRowStart-J10,1)<>\"\",INDEX(#REF!,DietLastEnd-DietRowStart-J10,5),NA())),NA())","v":{"$error":"#N/A"}},{"$f":"IFERROR((IF(INDEX(#REF!,DietLastEnd-DietRowStart-J10,1)<>\"\",INDEX(#REF!,DietLastEnd-DietRowStart-J10,4),NA())),NA())","v":{"$error":"#N/A"}},7]
[null,null,null,{"$f":"IFERROR(IF(INDEX(#REF!,DietLastEnd-DietRowStart-J11,1)<>\"\",INDEX(#REF!,DietLastEnd-DietRowStart-J11,1),\"\"),\"\")","v":""},"",{"$f":"IFERROR((IF(INDEX(#REF!,DietLastEnd-DietRowStart-J11,1)<>\"\",INDEX(#REF!,DietLastEnd-DietRowStart-J11,7),NA())),NA())","v":{"$error":"#N/A"}},{"$f":"IFERROR((IF(INDEX(#REF!,DietLastEnd-DietRowStart-J11,1)<>\"\",INDEX(#REF!,DietLastEnd-DietRowStart-J11,6),NA())),NA())","v":{"$error":"#N/A"}},{"$f":"IFERROR((IF(INDEX(#REF!,DietLastEnd-DietRowStart-J11,1)<>\"\",INDEX(#REF!,DietLastEnd-DietRowStart-J11,5),NA())),NA())","v":{"$error":"#N/A"}},{"$f":"IFERROR((IF(INDEX(#REF!,DietLastEnd-DietRowStart-J11,1)<>\"\",INDEX(#REF!,DietLastEnd-DietRowStart-J11,4),NA())),NA())","v":{"$error":"#N/A"}},6]
[null,null,null,{"$f":"IFERROR(IF(INDEX(#REF!,DietLastEnd-DietRowStart-J12,1)<>\"\",INDEX(#REF!,DietLastEnd-DietRowStart-J12,1),\"\"),\"\")","v":""},"",{"$f":"IFERROR((IF(INDEX(#REF!,DietLastEnd-DietRowStart-J12,1)<>\"\",INDEX(#REF!,DietLastEnd-DietRowStart-J12,7),NA())),NA())","v":{"$error":"#N/A"}},{"$f":"IFERROR((IF(INDEX(#REF!,DietLastEnd-DietRowStart-J12,1)<>\"\",INDEX(#REF!,DietLastEnd-DietRowStart-J12,6),NA())),NA())","v":{"$error":"#N/A"}},{"$f":"IFERROR((IF(INDEX(#REF!,DietLastEnd-DietRowStart-J12,1)<>\"\",INDEX(#REF!,DietLastEnd-DietRowStart-J12,5),NA())),NA())","v":{"$error":"#N/A"}},{"$f":"IFERROR((IF(INDEX(#REF!,DietLastEnd-DietRowStart-J12,1)<>\"\",INDEX(#REF!,DietLastEnd-DietRowStart-J12,4),NA())),NA())","v":{"$error":"#N/A"}},5]
[null,null,null,{"$f":"IFERROR(IF(INDEX(#REF!,DietLastEnd-DietRowStart-J13,1)<>\"\",INDEX(#REF!,DietLastEnd-DietRowStart-J13,1),\"\"),\"\")","v":""},"",{"$f":"IFERROR((IF(INDEX(#REF!,DietLastEnd-DietRowStart-J13,1)<>\"\",INDEX(#REF!,DietLastEnd-DietRowStart-J13,7),NA())),NA())","v":{"$error":"#N/A"}},{"$f":"IFERROR((IF(INDEX(#REF!,DietLastEnd-DietRowStart-J13,1)<>\"\",INDEX(#REF!,DietLastEnd-DietRowStart-J13,6),NA())),NA())","v":{"$error":"#N/A"}},{"$f":"IFERROR((IF(INDEX(#REF!,DietLastEnd-DietRowStart-J13,1)<>\"\",INDEX(#REF!,DietLastEnd-DietRowStart-J13,5),NA())),NA())","v":{"$error":"#N/A"}},{"$f":"IFERROR((IF(INDEX(#REF!,DietLastEnd-DietRowStart-J13,1)<>\"\",INDEX(#REF!,DietLastEnd-DietRowStart-J13,4),NA())),NA())","v":{"$error":"#N/A"}},4]
[null,null,null,{"$f":"IFERROR(IF(INDEX(#REF!,DietLastEnd-DietRowStart-J14,1)<>\"\",INDEX(#REF!,DietLastEnd-DietRowStart-J14,1),\"\"),\"\")","v":""},"",{"$f":"IFERROR((IF(INDEX(#REF!,DietLastEnd-DietRowStart-J14,1)<>\"\",INDEX(#REF!,DietLastEnd-DietRowStart-J14,7),NA())),NA())","v":{"$error":"#N/A"}},{"$f":"IFERROR((IF(INDEX(#REF!,DietLastEnd-DietRowStart-J14,1)<>\"\",INDEX(#REF!,DietLastEnd-DietRowStart-J14,6),NA())),NA())","v":{"$error":"#N/A"}},{"$f":"IFERROR((IF(INDEX(#REF!,DietLastEnd-DietRowStart-J14,1)<>\"\",INDEX(#REF!,DietLastEnd-DietRowStart-J14,5),NA())),NA())","v":{"$error":"#N/A"}},{"$f":"IFERROR((IF(INDEX(#REF!,DietLastEnd-DietRowStart-J14,1)<>\"\",INDEX(#REF!,DietLastEnd-DietRowStart-J14,4),NA())),NA())","v":{"$error":"#N/A"}},3]
[null,null,null,{"$f":"IFERROR(IF(INDEX(#REF!,DietLastEnd-DietRowStart-J15,1)<>\"\",INDEX(#REF!,DietLastEnd-DietRowStart-J15,1),\"\"),\"\")","v":""},"",{"$f":"IFERROR((IF(INDEX(#REF!,DietLastEnd-DietRowStart-J15,1)<>\"\",INDEX(#REF!,DietLastEnd-DietRowStart-J15,7),NA())),NA())","v":{"$error":"#N/A"}},{"$f":"IFERROR((IF(INDEX(#REF!,DietLastEnd-DietRowStart-J15,1)<>\"\",INDEX(#REF!,DietLastEnd-DietRowStart-J15,6),NA())),NA())","v":{"$error":"#N/A"}},{"$f":"IFERROR((IF(INDEX(#REF!,DietLastEnd-DietRowStart-J15,1)<>\"\",INDEX(#REF!,DietLastEnd-DietRowStart-J15,5),NA())),NA())","v":{"$error":"#N/A"}},{"$f":"IFERROR((IF(INDEX(#REF!,DietLastEnd-DietRowStart-J15,1)<>\"\",INDEX(#REF!,DietLastEnd-DietRowStart-J15,4),NA())),NA())","v":{"$error":"#N/A"}},2]
[null,null,null,{"$f":"IFERROR(IF(INDEX(#REF!,DietLastEnd-DietRowStart-J16,1)<>\"\",INDEX(#REF!,DietLastEnd-DietRowStart-J16,1),\"\"),\"\")","v":""},"",{"$f":"IFERROR((IF(INDEX(#REF!,DietLastEnd-DietRowStart-J16,1)<>\"\",INDEX(#REF!,DietLastEnd-DietRowStart-J16,7),NA())),NA())","v":{"$error":"#N/A"}},{"$f":"IFERROR((IF(INDEX(#REF!,DietLastEnd-DietRowStart-J16,1)<>\"\",INDEX(#REF!,DietLastEnd-DietRowStart-J16,6),NA())),NA())","v":{"$error":"#N/A"}},{"$f":"IFERROR((IF(INDEX(#REF!,DietLastEnd-DietRowStart-J16,1)<>\"\",INDEX(#REF!,DietLastEnd-DietRowStart-J16,5),NA())),NA())","v":{"$error":"#N/A"}},{"$f":"IFERROR((IF(INDEX(#REF!,DietLastEnd-DietRowStart-J16,1)<>\"\",INDEX(#REF!,DietLastEnd-DietRowStart-J16,4),NA())),NA())","v":{"$error":"#N/A"}},1]
[null,null,null,{"$f":"IFERROR(IF(INDEX(#REF!,DietLastEnd-DietRowStart-J17,1)<>\"\",INDEX(#REF!,DietLastEnd-DietRowStart-J17,1),\"\"),\"\")","v":""},"",{"$f":"IFERROR((IF(INDEX(#REF!,DietLastEnd-DietRowStart-J17,1)<>\"\",INDEX(#REF!,DietLastEnd-DietRowStart-J17,7),NA())),NA())","v":{"$error":"#N/A"}},{"$f":"IFERROR((IF(INDEX(#REF!,DietLastEnd-DietRowStart-J17,1)<>\"\",INDEX(#REF!,DietLastEnd-DietRowStart-J17,6),NA())),NA())","v":{"$error":"#N/A"}},{"$f":"IFERROR((IF(INDEX(#REF!,DietLastEnd-DietRowStart-J17,1)<>\"\",INDEX(#REF!,DietLastEnd-DietRowStart-J17,5),NA())),NA())","v":{"$error":"#N/A"}},{"$f":"IFERROR((IF(INDEX(#REF!,DietLastEnd-DietRowStart-J17,1)<>\"\",INDEX(#REF!,DietLastEnd-DietRowStart-J17,4),NA())),NA())","v":{"$error":"#N/A"}},0]
[null,null,null,{"$f":"IFERROR(IF(INDEX(#REF!,DietLastEnd-DietRowStart-J18,1)<>\"\",INDEX(#REF!,DietLastEnd-DietRowStart-J18,1),\"\"),\"\")","v":""},"",{"$f":"IFERROR((IF(INDEX(#REF!,DietLastEnd-DietRowStart-J18,1)<>\"\",INDEX(#REF!,DietLastEnd-DietRowStart-J18,7),NA())),NA())","v":{"$error":"#N/A"}},{"$f":"IFERROR((IF(INDEX(#REF!,DietLastEnd-DietRowStart-J18,1)<>\"\",INDEX(#REF!,DietLastEnd-DietRowStart-J18,6),NA())),NA())","v":{"$error":"#N/A"}},{"$f":"IFERROR((IF(INDEX(#REF!,DietLastEnd-DietRowStart-J18,1)<>\"\",INDEX(#REF!,DietLastEnd-DietRowStart-J18,5),NA())),NA())","v":{"$error":"#N/A"}},{"$f":"IFERROR((IF(INDEX(#REF!,DietLastEnd-DietRowStart-J18,1)<>\"\",INDEX(#REF!,DietLastEnd-DietRowStart-J18,4),NA())),NA())","v":{"$error":"#N/A"}},-1]
[]
[null,"DATOS DEL GRÁFICO ANÁLISIS DE EJERCICIOS"]
[]
[null,"Fila inicial",{"$f":"ROW(#REF!)+1","v":{"$error":"#REF!"}},"FECHA","DÍA","DURACIÓN (MÍN.)","CALORÍAS QUEMADAS","Núm."]
[null,"Última entrada de ejercicio",{"$f":"MATCH(9.99E+307,#REF!)+ExerciseRowStart-1","v":{"$error":"#REF!"}},{"$f":"IFERROR(IF(INDEX(#REF!,ExerciseLastEnd-ExerciseRowStart-H23,1)<>\"\",INDEX(#REF!,ExerciseLastEnd-ExerciseRowStart-H23,1)),\"\")","v":""},{"$f":"UPPER(TEXT(D23,\"DDD\"))","v":""},{"$f":"IFERROR((IF(INDEX(#REF!,ExerciseLastEnd-ExerciseRowStart-H23,1)<>\"\",INDEX(#REF!,ExerciseLastEnd-ExerciseRowStart-H23,2),0)),0)","v":0},{"$f":"IFERROR((IF(INDEX(#REF!,ExerciseLastEnd-ExerciseRowStart-H23,2)<>\"\",INDEX(#REF!,ExerciseLastEnd-ExerciseRowStart-H23,3),0)),0)","v":0},-1]
[null,null,null,{"$f":"IFERROR(IF(INDEX(#REF!,ExerciseLastEnd-ExerciseRowStart-H24,1)<>\"\",INDEX(#REF!,ExerciseLastEnd-ExerciseRowStart-H24,1)),\"\")","v":""},"",{"$f":"IFERROR((IF(INDEX(#REF!,ExerciseLastEnd-ExerciseRowStart-H24,1)<>\"\",INDEX(#REF!,ExerciseLastEnd-ExerciseRowStart-H24,2),0)),0)","v":0},{"$f":"IFERROR((IF(INDEX(#REF!,ExerciseLastEnd-ExerciseRowStart-H24,2)<>\"\",INDEX(#REF!,ExerciseLastEnd-ExerciseRowStart-H24,3),0)),0)","v":0},0]
[null,null,null,{"$f":"IFERROR(IF(INDEX(#REF!,ExerciseLastEnd-ExerciseRowStart-H25,1)<>\"\",INDEX(#REF!,ExerciseLastEnd-ExerciseRowStart-H25,1)),\"\")","v":""},"",{"$f":"IFERROR((IF(INDEX(#REF!,ExerciseLastEnd-ExerciseRowStart-H25,1)<>\"\",INDEX(#REF!,ExerciseLastEnd-ExerciseRowStart-H25,2),0)),0)","v":0},{"$f":"IFERROR((IF(INDEX(#REF!,ExerciseLastEnd-ExerciseRowStart-H25,2)<>\"\",INDEX(#REF!,ExerciseLastEnd-ExerciseRowStart-H25,3),0)),0)","v":0},1]
[null,null,null,{"$f":"IFERROR(IF(INDEX(#REF!,ExerciseLastEnd-ExerciseRowStart-H26,1)<>\"\",INDEX(#REF!,ExerciseLastEnd-ExerciseRowStart-H26,1)),\"\")","v":""},"",{"$f":"IFERROR((IF(INDEX(#REF!,ExerciseLastEnd-ExerciseRowStart-H26,1)<>\"\",INDEX(#REF!,ExerciseLastEnd-ExerciseRowStart-H26,2),0)),0)","v":0},{"$f":"IFERROR((IF(INDEX(#REF!,ExerciseLastEnd-ExerciseRowStart-H26,2)<>\"\",INDEX(#REF!,ExerciseLastEnd-ExerciseRowStart-H26,3),0)),0)","v":0},2]
[null,null,null,{"$f":"IFERROR(IF(INDEX(#REF!,ExerciseLastEnd-ExerciseRowStart-H27,1)<>\"\",INDEX(#REF!,ExerciseLastEnd-ExerciseRowStart-H27,1)),\"\")","v":""},"",{"$f":"IFERROR((IF(INDEX(#REF!,ExerciseLastEnd-ExerciseRowStart-H27,1)<>\"\",INDEX(#REF!,ExerciseLastEnd-ExerciseRowStart-H27,2),0)),0)","v":0},{"$f":"IFERROR((IF(INDEX(#REF!,ExerciseLastEnd-ExerciseRowStart-H27,2)<>\"\",INDEX(#REF!,ExerciseLastEnd-ExerciseRowStart-H27,3),0)),0)","v":0},3]
[null,null,null,{"$f":"IFERROR(IF(INDEX(#REF!,ExerciseLastEnd-ExerciseRowStart-H28,1)<>\"\",INDEX(#REF!,ExerciseLastEnd-ExerciseRowStart-H28,1)),\"\")","v":""},"",{"$f":"IFERROR((IF(INDEX(#REF!,ExerciseLastEnd-ExerciseRowStart-H28,1)<>\"\",INDEX(#REF!,ExerciseLastEnd-ExerciseRowStart-H28,2),0)),0)","v":0},{"$f":"IFERROR((IF(INDEX(#REF!,ExerciseLastEnd-ExerciseRowStart-H28,2)<>\"\",INDEX(#REF!,ExerciseLastEnd-ExerciseRowStart-H28,3),0)),0)","v":0},4]
[null,null,null,{"$f":"IFERROR(IF(INDEX(#REF!,ExerciseLastEnd-ExerciseRowStart-H29,1)<>\"\",INDEX(#REF!,ExerciseLastEnd-ExerciseRowStart-H29,1)),\"\")","v":""},"",{"$f":"IFERROR((IF(INDEX(#REF!,ExerciseLastEnd-ExerciseRowStart-H29,1)<>\"\",INDEX(#REF!,ExerciseLastEnd-ExerciseRowStart-H29,2),0)),0)","v":0},{"$f":"IFERROR((IF(INDEX(#REF!,ExerciseLastEnd-ExerciseRowStart-H29,2)<>\"\",INDEX(#REF!,ExerciseLastEnd-ExerciseRowStart-H29,3),0)),0)","v":0},5]
[null,null,null,{"$f":"IFERROR(IF(INDEX(#REF!,ExerciseLastEnd-ExerciseRowStart-H30,1)<>\"\",INDEX(#REF!,ExerciseLastEnd-ExerciseRowStart-H30,1)),\"\")","v":""},"",{"$f":"IFERROR((IF(INDEX(#REF!,ExerciseLastEnd-ExerciseRowStart-H30,1)<>\"\",INDEX(#REF!,ExerciseLastEnd-ExerciseRowStart-H30,2),0)),0)","v":0},{"$f":"IFERROR((IF(INDEX(#REF!,ExerciseLastEnd-ExerciseRowStart-H30,2)<>\"\",INDEX(#REF!,ExerciseLastEnd-ExerciseRowStart-H30,3),0)),0)","v":0},6]
[null,null,null,{"$f":"IFERROR(IF(INDEX(#REF!,ExerciseLastEnd-ExerciseRowStart-H31,1)<>\"\",INDEX(#REF!,ExerciseLastEnd-ExerciseRowStart-H31,1)),\"\")","v":""},"",{"$f":"IFERROR((IF(INDEX(#REF!,ExerciseLastEnd-ExerciseRowStart-H31,1)<>\"\",INDEX(#REF!,ExerciseLastEnd-ExerciseRowStart-H31,2),0)),0)","v":0},{"$f":"IFERROR((IF(INDEX(#REF!,ExerciseLastEnd-ExerciseRowStart-H31,2)<>\"\",INDEX(#REF!,ExerciseLastEnd-ExerciseRowStart-H31,3),0)),0)","v":0},7]
[null,null,null,{"$f":"IFERROR(IF(INDEX(#REF!,ExerciseLastEnd-ExerciseRowStart-H32,1)<>\"\",INDEX(#REF!,ExerciseLastEnd-ExerciseRowStart-H32,1)),\"\")","v":""},"",{"$f":"IFERROR((IF(INDEX(#REF!,ExerciseLastEnd-ExerciseRowStart-H32,1)<>\"\",INDEX(#REF!,ExerciseLastEnd-ExerciseRowStart-H32,2),0)),0)","v":0},{"$f":"IFERROR((IF(INDEX(#REF!,ExerciseLastEnd-ExerciseRowStart-H32,2)<>\"\",INDEX(#REF!,ExerciseLastEnd-ExerciseRowStart-H32,3),0)),0)","v":0},8]
[null,null,null,{"$f":"IFERROR(IF(INDEX(#REF!,ExerciseLastEnd-ExerciseRowStart-H33,1)<>\"\",INDEX(#REF!,ExerciseLastEnd-ExerciseRowStart-H33,1)),\"\")","v":""},"",{"$f":"IFERROR((IF(INDEX(#REF!,ExerciseLastEnd-ExerciseRowStart-H33,1)<>\"\",INDEX(#REF!,ExerciseLastEnd-ExerciseRowStart-H33,2),0)),0)","v":0},{"$f":"IFERROR((IF(INDEX(#REF!,ExerciseLastEnd-ExerciseRowStart-H33,2)<>\"\",INDEX(#REF!,ExerciseLastEnd-ExerciseRowStart-H33,3),0)),0)","v":0},9]
[null,null,null,{"$f":"IFERROR(IF(INDEX(#REF!,ExerciseLastEnd-ExerciseRowStart-H34,1)<>\"\",INDEX(#REF!,ExerciseLastEnd-ExerciseRowStart-H34,1)),\"\")","v":""},"",{"$f":"IFERROR((IF(INDEX(#REF!,ExerciseLastEnd-ExerciseRowStart-H34,1)<>\"\",INDEX(#REF!,ExerciseLastEnd-ExerciseRowStart-H34,2),0)),0)","v":0},{"$f":"IFERROR((IF(INDEX(#REF!,ExerciseLastEnd-ExerciseRowStart-H34,2)<>\"\",INDEX(#REF!,ExerciseLastEnd-ExerciseRowStart-H34,3),0)),0)","v":0},10]
[null,null,null,{"$f":"IFERROR(IF(INDEX(#REF!,ExerciseLastEnd-ExerciseRowStart-H35,1)<>\"\",INDEX(#REF!,ExerciseLastEnd-ExerciseRowStart-H35,1)),\"\")","v":""},"",{"$f":"IFERROR((IF(INDEX(#REF!,ExerciseLastEnd-ExerciseRowStart-H35,1)<>\"\",INDEX(#REF!,ExerciseLastEnd-ExerciseRowStart-H35,2),0)),0)","v":0},{"$f":"IFERROR((IF(INDEX(#REF!,ExerciseLastEnd-ExerciseRowStart-H35,2)<>\"\",INDEX(#REF!,ExerciseLastEnd-ExerciseRowStart-H35,3),0)),0)","v":0},11]
[null,null,null,{"$f":"IFERROR(IF(INDEX(#REF!,ExerciseLastEnd-ExerciseRowStart-H36,1)<>\"\",INDEX(#REF!,ExerciseLastEnd-ExerciseRowStart-H36,1)),\"\")","v":""},"",{"$f":"IFERROR((IF(INDEX(#REF!,ExerciseLastEnd-ExerciseRowStart-H36,1)<>\"\",INDEX(#REF!,ExerciseLastEnd-ExerciseRowStart-H36,2),0)),0)","v":0},{"$f":"IFERROR((IF(INDEX(#REF!,ExerciseLastEnd-ExerciseRowStart-H36,2)<>\"\",INDEX(#REF!,ExerciseLastEnd-ExerciseRowStart-H36,3),0)),0)","v":0},12]